fUST/lending_fUST_20240918
["ID","MTS","AMOUNT","RATE_DAILY","PERIOD"]
[338467315,1726667443876,-1008.99,0.00019178,2]
[338467316,1726667443886,-481.931923,0.00019178,2]
[338467317,1726667443896,-481.931923,0.00019178,2]
[338467318,1726667443906,-500.0,0.00019178,2]
[338467319,1726667443915,-481.931923,0.00019178,2]
[338467320,1726667443924,-1811.81,0.00019178,2]
[338467322,1726667443933,-481.931923,0.00019178,2]
[338467324,1726667443942,-481.931923,0.00019178,2]
[338467326,1726667443951,-481.931923,0.00019178,2]
[338467327,1726667443961,-481.931923,0.00019178,2]
[338467329,1726667443970,-500.0,0.00019178,2]
[338467331,1726667443979,-481.931923,0.00019178,2]
[338467333,1726667443989,-704.46,0.00019178,2]
[338467334,1726667443998,-481.931923,0.00019178,2]
[338467336,1726667444013,-481.931923,0.00019178,2]
[338467338,1726667444026,-481.931923,0.00019178,2]
[338467340,1726667444036,-481.931923,0.00019178,2]
[338467342,1726667444045,-500.3,0.00019178,2]
[338467344,1726667444054,-481.931923,0.00019178,2]
[338467345,1726667444064,-1535.4,0.00019178,2]
[338467347,1726667444073,-481.931923,0.00019178,2]
[338467348,1726667444082,-500.0,0.00019178,2]
[338467350,1726667444092,-1118.78,0.00019178,2]
[338467351,1726667444102,-560.27,0.00019178,2]
[338467353,1726667444111,-1812.12,0.00019178,2]
[338467355,1726667444120,-1794.08,0.00019178,2]
[338467357,1726667444129,-500.0,0.00019178,2]
[338467359,1726667444139,-500.0,0.00019178,2]
[338467361,1726667444148,-500.0,0.00019178,2]
[338467362,1726667444157,-1634.95,0.00019178,2]
[338467364,1726667444166,-500.0,0.00019178,2]
[338467366,1726667444175,-500.0,0.00019178,2]
[338467368,1726667444185,-500.0,0.00019178,2]
[338467369,1726667444195,-1735.12,0.00019178,2]
[338467370,1726667444204,-500.0,0.00019178,2]
[338467371,1726667444213,-500.0,0.00019178,2]
[338467372,1726667444222,-747.27,0.00019178,2]
[338467373,1726667444232,-500.0,0.00019178,2]
[338467374,1726667444241,-1392.39,0.00019178,2]
[338467375,1726667444251,-500.0,0.00019178,2]
[338467376,1726667444268,-672.81,0.00019178,2]
[338467377,1726667444277,-500.0,0.00019178,2]
[338467378,1726667444286,-500.0,0.00019178,2]
[338467379,1726667444296,-151.0,0.00019178,2]
[338467380,1726667444305,-506.47369279,0.00019178,2]
[338467381,1726667444314,-500.0,0.00019178,2]
[338467382,1726667444323,-151.0,0.00019178,2]
[338467383,1726667444333,-151.0,0.00019178,2]
[338467384,1726667444342,-500.0,0.00019178,2]
[338467385,1726667444351,-151.0,0.00019178,2]
[338467386,1726667444362,-151.0,0.00019178,2]
[338467387,1726667444372,-500.0,0.00019178,2]
[338467388,1726667444383,-153.153796,0.00019178,2]
[338467389,1726667444392,-500.0,0.00019178,2]
[338467390,1726667444402,-500.0,0.00019178,2]
[338467391,1726667444411,-500.0,0.00019178,2]
[338467392,1726667444420,-500.0,0.00019178,2]
[338467393,1726667444430,-500.0,0.00019178,2]
[338467394,1726667444439,-1134.81,0.00019178,2]
[338467395,1726667444448,-500.0,0.00019178,2]
[338467396,1726667444457,-500.0,0.00019178,2]
[338467397,1726667444466,-1687.76,0.00019178,2]
[338467398,1726667444475,-500.0,0.00019178,2]
[338467399,1726667444484,-2417.17,0.00019178,2]
[338467400,1726667444494,-836.69,0.00019178,2]
[338467402,1726667444504,-500.0,0.00019178,2]
[338467404,1726667444516,-601.75,0.00019178,2]
[338467406,1726667444525,-500.0,0.00019178,2]
[338467407,1726667444535,-500.0,0.00019178,2]
[338467409,1726667444545,-500.0,0.00019178,2]
[338467411,1726667444554,-500.0,0.00019178,2]
[338467412,1726667444563,-584.43,0.00019178,2]
[338467414,1726667444573,-151.0,0.00019178,2]
[338467416,1726667444583,-151.0,0.00019178,2]
[338467417,1726667444592,-151.0,0.00019178,2]
[338467419,1726667444602,-151.0,0.00019178,2]
[338467421,1726667444612,-1285.16,0.00019178,2]
[338467422,1726667444622,-500.0,0.00019178,2]
[338467423,1726667444631,-151.0,0.00019178,2]
[338467424,1726667444641,-151.0,0.00019178,2]
[338467425,1726667444650,-151.0,0.00019178,2]
[338467426,1726667444659,-500.0,0.00019178,2]
[338467427,1726667444670,-1130.31,0.00019178,2]
[338467428,1726667444680,-151.0,0.00019178,2]
[338467429,1726667444690,-1090.14,0.00019178,2]
[338467430,1726667444698,-151.0,0.00019178,2]
[338467431,1726667444708,-151.0,0.00019178,2]
[338467432,1726667444718,-500.0,0.00019178,2]
[338467433,1726667444730,-151.0,0.00019178,2]
[338467434,1726667444740,-151.0,0.00019178,2]
[338467435,1726667444750,-274.580942,0.00019178,2]
[338467436,1726667444763,-500.0,0.00019178,2]
[338467437,1726667444773,-934.75,0.00019178,2]
[338467438,1726667444783,-1166.91,0.00019178,2]
[338467439,1726667444792,-151.0,0.00019178,2]
[338467440,1726667444802,-151.0,0.00019178,2]
[338467441,1726667444811,-3224.36,0.00019178,2]
[338467442,1726667444821,-888.97,0.00019178,2]
[338467443,1726667444830,-559.26,0.00019178,2]
[338467444,1726667444840,-500.0,0.00019178,2]
[338467445,1726667444850,-567.19,0.00019178,2]
[338467446,1726667444859,-500.0,0.00019178,2]
[338467447,1726667444869,-508.53,0.00019178,2]
[338467448,1726667444879,-500.0,0.00019178,2]
[338467449,1726667444889,-500.0,0.00019178,2]
[338467450,1726667444899,-500.0,0.00019178,2]
[338467451,1726667444908,-500.0,0.00019178,2]
[338467452,1726667444917,-1365.32,0.00019178,2]
[338467453,1726667444927,-500.0,0.00019178,2]
[338467454,1726667444937,-643.85,0.00019178,2]
[338467455,1726667444947,-500.0,0.00019178,2]
[338467456,1726667444956,-500.0,0.00019178,2]
[338467457,1726667444966,-933.8,0.00019178,2]
[338467458,1726667445119,-500.0,0.00019178,2]
[338467459,1726667445130,-500.0,0.00019178,2]
[338467460,1726667445140,-309.26441141,0.00019178,2]
[338467461,1726667445150,-151.0,0.00019178,2]
[338467462,1726667445160,-151.0,0.00019178,2]
[338467463,1726667445170,-696.15,0.00019178,2]
[338467464,1726667445180,-240.6271,0.00019178,2]
[338467465,1726667445190,-503.59,0.00019178,2]
[338467466,1726667445200,-1482.14,0.00019178,2]
[338467467,1726667445210,-188.451376,0.00019178,2]
[338467468,1726667445219,-188.451376,0.00019178,2]
[338467469,1726667445229,-188.451376,0.00019178,2]
[338467470,1726667445238,-442.27621167,0.00019178,2]
[338467471,1726667445247,-500.0,0.00019178,2]
[338467472,1726667445260,-188.451376,0.00019178,2]
[338467473,1726667445270,-188.451376,0.00019178,2]
[338467474,1726667445279,-188.451376,0.00019178,2]
[338467475,1726667445290,-188.451376,0.00019178,2]
[338467476,1726667445299,-188.451376,0.00019178,2]
[338467477,1726667445309,-188.451376,0.00019178,2]
[338467478,1726667445319,-188.451376,0.00019178,2]
[338467479,1726667445328,-188.451376,0.00019178,2]
[338467480,1726667445338,-188.451376,0.00019178,2]
[338467481,1726667445347,-188.451376,0.00019178,2]
[338467482,1726667445357,-188.451376,0.00019178,2]
[338467483,1726667445367,-188.451376,0.00019178,2]
[338467484,1726667445377,-188.451376,0.00019178,2]
[338467485,1726667445388,-1127.242025,0.00019178,2]
[338467486,1726667445397,-500.0,0.00019178,2]
[338467487,1726667445407,-500.0,0.00019178,2]
[338467488,1726667445417,-690.37,0.00019178,2]
[338467489,1726667445427,-1127.242025,0.00019178,2]
[338467490,1726667445436,-1899.85,0.00019178,2]
[338467491,1726667445446,-1127.242025,0.00019178,2]
[338467492,1726667445455,-1127.242025,0.00019178,2]
[338467493,1726667445465,-500.0,0.00019178,2]
[338467494,1726667445475,-500.0,0.00019178,2]
[338467495,1726667445484,-500.0,0.00019178,2]
[338467496,1726667445493,-1133.09,0.00019178,2]
[338467497,1726667445503,-2301.41,0.00019178,2]
[338467498,1726667445517,-1127.242025,0.00019178,2]
[338467499,1726667445527,-1127.242025,0.00019178,2]
[338467500,1726667445537,-1127.242025,0.00019178,2]
[338467501,1726667445546,-1127.242025,0.00019178,2]
[338467502,1726667445555,-998.42,0.00019178,2]
[338467503,1726667445565,-500.0,0.00019178,2]
[338467504,1726667445574,-1127.242025,0.00019178,2]
[338467505,1726667445584,-2181.79,0.00019178,2]
[338467506,1726667445594,-1127.242025,0.00019178,2]
[338467507,1726667445603,-1127.242025,0.00019178,2]
[338467508,1726667445613,-1127.242025,0.00019178,2]
[338467509,1726667445622,-1127.242025,0.00019178,2]
[338467510,1726667445632,-524.45,0.00019178,2]
[338467511,1726667445641,-500.0,0.00019178,2]
[338467512,1726667445652,-1127.242025,0.00019178,2]
[338467513,1726667445662,-1127.242025,0.00019178,2]
[338467514,1726667445672,-1127.242025,0.00019178,2]
[338467515,1726667445682,-500.0,0.00019178,2]
[338467516,1726667445692,-500.0,0.00019178,2]
[338467517,1726667445701,-569.76034459,0.00019178,2]
[338467518,1726667445711,-1677.7,0.00019178,2]
[338467519,1726667445720,-615.94,0.00019178,2]
[338467520,1726667445733,-500.0,0.00019178,2]
[338467521,1726667445742,-650.83,0.00019178,2]
[338467522,1726667445752,-163.5912942,0.00019178,2]
[338467523,1726667445766,-1089.4,0.00019178,2]
[338467524,1726667445778,-500.0,0.00019178,2]
[338467525,1726667445788,-1607.45,0.00019178,2]
[338467526,1726667445799,-500.0,0.00019178,2]
[338467527,1726667445809,-1469.71,0.00019178,2]
[338467528,1726667445819,-500.0,0.00019178,2]
[338467529,1726667445830,-500.0,0.00019178,2]
[338467530,1726667445839,-500.0,0.00019178,2]
[338467531,1726667445849,-500.0,0.00019178,2]
[338467532,1726667445859,-500.0,0.00019178,2]
[338467533,1726667445868,-913.68,0.00019178,2]
[338467534,1726667445878,-500.0,0.00019178,2]
[338467535,1726667445888,-500.0,0.00019178,2]
[338467536,1726667445898,-500.0,0.00019178,2]
[338467537,1726667445907,-500.0,0.00019178,2]
[338467538,1726667445917,-910.77,0.00019178,2]
[338467539,1726667445927,-1982.53,0.00019178,2]
[338467540,1726667445936,-620.32,0.00019178,2]
[338467541,1726667445946,-1289.25,0.00019178,2]
[338467542,1726667445956,-747.09,0.00019178,2]
[338467544,1726667445966,-659.39,0.00019178,2]
[338467545,1726667445977,-500.0,0.00019178,2]
[338467546,1726667445987,-1403.15,0.00019178,2]
[338467547,1726667445998,-500.0,0.00019178,2]
[338467548,1726667446009,-614.97064397,0.00019178,2]
[338467549,1726667446018,-500.0,0.00019178,2]
[338467550,1726667446028,-500.0,0.00019178,2]
[338467552,1726667446037,-500.0,0.00019178,2]
[338467554,1726667446048,-500.0,0.00019178,2]
[338467556,1726667446058,-1036.41,0.00019178,2]
[338467558,1726667446067,-500.0,0.00019178,2]
[338467559,1726667446077,-151.0,0.00019178,2]
[338467560,1726667446087,-151.0,0.00019178,2]
[338467561,1726667446097,-587.24,0.00019178,2]
[338467562,1726667446106,-500.0,0.00019178,2]
[338467563,1726667446116,-151.0,0.00019178,2]
[338467564,1726667446126,-151.0,0.00019178,2]
[338467565,1726667446135,-151.0,0.00019178,2]
[338467566,1726667446145,-151.0,0.00019178,2]
[338467568,1726667446154,-151.0,0.00019178,2]
[338467569,1726667446163,-757.3,0.00019178,2]
[338467570,1726667446173,-1681.86,0.00019178,2]
[338467571,1726667446182,-151.0,0.00019178,2]
[338467572,1726667446192,-500.0,0.00019178,2]
[338467573,1726667446202,-166.982332,0.00019178,2]
[338467574,1726667446212,-500.0,0.00019178,2]
[338467575,1726667446221,-500.0,0.00019178,2]
[338467576,1726667446231,-2067.76,0.00019178,2]
[338467577,1726667446240,-421.073142,0.00019178,2]
[338467578,1726667446250,-421.073142,0.00019178,2]
[338467579,1726667446262,-421.073142,0.00019178,2]
[338467581,1726667446273,-421.073142,0.00019178,2]
[338467583,1726667446282,-421.073142,0.00019178,2]
[338467585,1726667446291,-151.0,0.00019178,2]
[338467586,1726667446300,-421.073142,0.00019178,2]
[338467588,1726667446310,-151.0,0.00019178,2]
[338467590,1726667446320,-421.073142,0.00019178,2]
[338467591,1726667446330,-151.0,0.00019178,2]
[338467592,1726667446340,-292.651344,0.00019178,2]
[338467593,1726667446349,-500.0,0.00019178,2]
[338467594,1726667446359,-421.073142,0.00019178,2]
[338467595,1726667446369,-500.0,0.00019178,2]
[338467597,1726667446378,-500.0,0.00019178,2]
[338467598,1726667446389,-421.073142,0.00019178,2]
[338467600,1726667446398,-421.073142,0.00019178,2]
[338467602,1726667446408,-500.0,0.00019178,2]
[338467603,1726667446417,-421.073142,0.00019178,2]
[338467604,1726667446427,-500.0,0.00019178,2]
[338467605,1726667446436,-640.22207552,0.00019178,2]
[338467606,1726667446445,-421.073142,0.00019178,2]
[338467607,1726667446455,-899.24,0.00019178,2]
[338467608,1726667446465,-871.54,0.00019178,2]
[338467609,1726667446474,-899.24,0.00019178,2]
[338467610,1726667446484,-421.073142,0.00019178,2]
[338467611,1726667446493,-871.54,0.00019178,2]
[338467612,1726667446503,-899.24,0.00019178,2]
[338467613,1726667446514,-871.54,0.00019178,2]
[338467614,1726667446524,-899.24,0.00019178,2]
[338467615,1726667446534,-421.073142,0.00019178,2]
[338467616,1726667446543,-871.54,0.00019178,2]
[338467617,1726667446553,-899.24,0.00019178,2]
[338467618,1726667446562,-871.54,0.00019178,2]
[338467619,1726667446572,-899.24,0.00019178,2]
[338467620,1726667446581,-1366.41,0.00019178,2]
[338467621,1726667446591,-421.073142,0.00019178,2]
[338467622,1726667446600,-871.54,0.00019178,2]
[338467623,1726667446610,-871.54,0.00019178,2]
[338467624,1726667446619,-899.24,0.00019178,2]
[338467625,1726667446629,-602.89,0.00019178,2]
[338467626,1726667446639,-421.073142,0.00019178,2]
[338467627,1726667446648,-871.54,0.00019178,2]
[338467628,1726667446658,-899.24,0.00019178,2]
[338467629,1726667446667,-871.54,0.00019178,2]
[338467630,1726667446677,-899.24,0.00019178,2]
[338467631,1726667446686,-761.38,0.00019178,2]
[338467632,1726667446695,-871.54,0.00019178,2]
[338467633,1726667446704,-899.24,0.00019178,2]
[338467634,1726667446713,-899.24,0.00019178,2]
[338467635,1726667446723,-500.0,0.00019178,2]
[338467636,1726667446732,-871.54,0.00019178,2]
[338467637,1726667446741,-899.24,0.00019178,2]
[338467638,1726667446750,-871.54,0.00019178,2]
[338467639,1726667446761,-899.24,0.00019178,2]
[338467640,1726667446770,-1032.1,0.00019178,2]
[338467641,1726667446779,-871.54,0.00019178,2]
[338467642,1726667446788,-899.24,0.00019178,2]
[338467643,1726667446797,-871.54,0.00019178,2]
[338467644,1726667446807,-899.24,0.00019178,2]
[338467645,1726667446818,-871.54,0.00019178,2]
[338467646,1726667446827,-871.54,0.00019178,2]
[338467647,1726667446836,-899.24,0.00019178,2]
[338467648,1726667446845,-1117.62,0.00019178,2]
[338467649,1726667446854,-899.24,0.00019178,2]
[338467650,1726667446864,-871.54,0.00019178,2]
[338467651,1726667446873,-899.24,0.00019178,2]
[338467652,1726667446883,-871.54,0.00019178,2]
[338467653,1726667446893,-899.24,0.00019178,2]
[338467654,1726667446902,-871.54,0.00019178,2]
[338467655,1726667446912,-899.24,0.00019178,2]
[338467656,1726667446921,-871.54,0.00019178,2]
[338467657,1726667446931,-340.378756,0.00019178,2]
[338467658,1726667446941,-871.54,0.00019178,2]
[338467659,1726667446950,-899.24,0.00019178,2]
[338467660,1726667446960,-871.54,0.00019178,2]
[338467661,1726667446969,-899.24,0.00019178,2]
[338467662,1726667446979,-340.378756,0.00019178,2]
[338467663,1726667446989,-871.54,0.00019178,2]
[338467664,1726667446999,-899.24,0.00019178,2]
[338467665,1726667447010,-340.378756,0.00019178,2]
[338467666,1726667447020,-500.0,0.00019178,2]
[338467667,1726667447029,-899.32634633,0.00019178,2]
[338467668,1726667447038,-871.60439044,0.00019178,2]
[338467669,1726667447047,-340.378756,0.00019178,2]
[338467670,1726667447056,-340.378756,0.00019178,2]
[338467671,1726667447066,-340.378756,0.00019178,2]
[338467672,1726667447075,-340.378756,0.00019178,2]
[338467673,1726667447085,-500.0,0.00019178,2]
[338467674,1726667447094,-340.378756,0.00019178,2]
[338467675,1726667447104,-500.0,0.00019178,2]
[338467676,1726667447114,-500.0,0.00019178,2]
[338467677,1726667447123,-340.378756,0.00019178,2]
[338467678,1726667447132,-340.378756,0.00019178,2]
[338467679,1726667447142,-340.378756,0.00019178,2]
[338467680,1726667447151,-340.378756,0.00019178,2]
[338467681,1726667447160,-1023.61,0.00019178,2]
[338467682,1726667447169,-340.378756,0.00019178,2]
[338467683,1726667447179,-340.378756,0.00019178,2]
[338467684,1726667447188,-340.378756,0.00019178,2]
[338467685,1726667447198,-340.378756,0.00019178,2]
[338467686,1726667447207,-500.0,0.00019178,2]
[338467687,1726667447216,-329.90250438,0.00019178,2]
[338467688,1726667447225,-500.0,0.00019178,2]
[338467689,1726667447235,-500.0,0.00019178,2]
[338467690,1726667447379,-500.0,0.00019178,2]
[338467691,1726667447390,-500.0,0.00019178,2]
[338467692,1726667447399,-500.0,0.00019178,2]
[338467693,1726667447409,-500.0,0.00019178,2]
[338467694,1726667447419,-685.1,0.00019178,2]
[338467695,1726667447428,-825.31,0.00019178,2]
[338467696,1726667447437,-524.05,0.00019178,2]
[338467697,1726667447447,-500.0,0.00019178,2]
[338467698,1726667447456,-500.0,0.00019178,2]
[338467699,1726667447466,-500.0,0.00019178,2]
[338467700,1726667447475,-500.0,0.00019178,2]
[338467701,1726667447484,-500.0,0.00019178,2]
[338467702,1726667447494,-500.0,0.00019178,2]
[338467703,1726667447503,-500.0,0.00019178,2]
[338467704,1726667447516,-500.0,0.00019178,2]
[338467705,1726667447525,-500.0,0.00019178,2]
[338467706,1726667447535,-500.0,0.00019178,2]
[338467707,1726667447544,-379.29274194,0.00019178,2]
[338467708,1726667447553,-500.0,0.00019178,2]
[338467709,1726667447563,-500.0,0.00019178,2]
[338467710,1726667447572,-500.0,0.00019178,2]
[338467711,1726667447582,-1502.89,0.00019178,2]
[338467712,1726667447592,-500.0,0.00019178,2]
[338467713,1726667447602,-500.0,0.00019178,2]
[338467714,1726667447612,-500.0,0.00019178,2]
[338467715,1726667447622,-525.92,0.00019178,2]
[338467716,1726667447631,-500.0,0.00019178,2]
[338467717,1726667447641,-500.0,0.00019178,2]
[338467718,1726667447651,-500.0,0.00019178,2]
[338467719,1726667447660,-500.0,0.00019178,2]
[338467720,1726667447669,-500.0,0.00019178,2]
[338467721,1726667447679,-402.24,0.00019178,2]
[338467722,1726667447689,-210.20224572,0.00019178,2]
[338467723,1726667447699,-500.0,0.00019178,2]
[338467724,1726667447708,-500.0,0.00019178,2]
[338467725,1726667447717,-1528.13,0.00019178,2]
[338467726,1726667447728,-1243.31,0.00019178,2]
[338467727,1726667447739,-500.0,0.00019178,2]
[338467728,1726667447749,-1110.75,0.00019178,2]
[338467729,1726667447761,-1110.75,0.00019178,2]
[338467730,1726667447770,-1110.75,0.00019178,2]
[338467731,1726667447782,-1110.75,0.00019178,2]
[338467732,1726667447791,-1110.75,0.00019178,2]
[338467733,1726667447801,-1110.75,0.00019178,2]
[338467734,1726667447810,-1110.75,0.00019178,2]
[338467735,1726667447821,-1110.75,0.00019178,2]
[338467736,1726667447831,-1110.75,0.00019178,2]
[338467737,1726667447840,-1110.75,0.00019178,2]
[338467738,1726667447850,-1110.75,0.00019178,2]
[338467739,1726667447859,-500.0,0.00019178,2]
[338467740,1726667447869,-1110.75,0.00019178,2]
[338467741,1726667447878,-1110.75,0.00019178,2]
[338467742,1726667447888,-500.0,0.00019178,2]
[338467743,1726667447898,-1110.75,0.00019178,2]
[338467744,1726667447907,-500.0,0.00019178,2]
[338467745,1726667447917,-1110.75,0.00019178,2]
[338467746,1726667447927,-1110.75,0.00019178,2]
[338467747,1726667447936,-2058.38,0.00019178,2]
[338467748,1726667447946,-1110.75,0.00019178,2]
[338467749,1726667447955,-1110.75,0.00019178,2]
[338467750,1726667447965,-1110.75,0.00019178,2]
[338467751,1726667447975,-1110.75,0.00019178,2]
[338467752,1726667447984,-1110.75,0.00019178,2]
[338467753,1726667447993,-1110.75,0.00019178,2]
[338467754,1726667448003,-1110.75,0.00019178,2]
[338467755,1726667448015,-2638.44,0.00019178,2]
[338467756,1726667448025,-1110.78861078,0.00019178,2]
[338467757,1726667448034,-500.0,0.00019178,2]
[338467758,1726667448044,-2007.71,0.00019178,2]
[338467759,1726667448054,-2007.71,0.00019178,2]
[338467760,1726667448063,-2007.71,0.00019178,2]
[338467761,1726667448073,-2007.71,0.00019178,2]
[338467762,1726667448082,-2007.71,0.00019178,2]
[338467763,1726667448092,-2007.71,0.00019178,2]
[338467764,1726667448102,-2007.71,0.00019178,2]
[338467765,1726667448112,-2007.71,0.00019178,2]
[338467766,1726667448121,-2007.71,0.00019178,2]
[338467767,1726667448131,-500.0,0.00019178,2]
[338467768,1726667448141,-2007.71,0.00019178,2]
[338467769,1726667448151,-2007.71,0.00019178,2]
[338467770,1726667448161,-2007.71,0.00019178,2]
[338467771,1726667448171,-532.59370573,0.00019178,2]
[338467772,1726667448180,-2007.71,0.00019178,2]
[338467773,1726667448190,-2007.71,0.00019178,2]
[338467774,1726667448201,-548.15480106,0.00019178,2]
[338467775,1726667448670,-517.91913782,0.00019178,2]
[338467776,1726667449513,-208.74914789,0.00018915,2]
[338467777,1726667449523,-834.79764841,0.00019178,2]
[338467778,1726667449942,-106.83841271,0.00019178,2]
[338467779,1726667449952,-1267.03620682,0.00019178,2]
[338467781,1726667790634,159.5,0.00014012,2]
[338467858,1726668638690,-845.6814202,0.00017837,2]
[338467860,1726668638701,-1070.1,0.00017838,2]
[338467861,1726668638711,-34.95917338,0.00017848,2]
[338467862,1726668638728,-2349.90785332,0.00017848,2]
[338467863,1726668638738,-164.633501,0.00017919,2]
[338467864,1726668638748,-578.00578363,0.00017971,2]
[338467870,1726668640713,-1.98421637,0.00017971,2]
[338467872,1726668640722,-150.0,0.000189,2]
[338467873,1726668640732,-598.27,0.00019,2]
[338467874,1726668640741,-153.0,0.00019,2]
[338467876,1726668640751,-1433.24229622,0.00019048,2]
[338467878,1726668640760,-1000.0,0.00019058,2]
[338467880,1726668640770,-300.0,0.00019072,2]
[338467882,1726668640779,-300.0,0.00019072,2]
[338467884,1726668640788,-3000.0,0.00019078,2]
[338467886,1726668640797,-3969.04007498,0.00019078,2]
[338467888,1726668640806,-5000.0,0.000191,2]
[338467890,1726668640815,-500.0,0.00019138,2]
[338467891,1726668640824,-500.0,0.00019147,2]
[338467892,1726668640835,-500.0,0.00019147,2]
[338467893,1726668640844,-339.47859358,0.00019147,2]
[338467894,1726668640853,-51156.583704,0.00019148,3]
[338467896,1726668640863,-3770.97561875,0.00019148,3]
[338467898,1726668640873,-179.98132823,0.00019157,2]
[338467900,1726668640882,-629.93230828,0.00019157,2]
[338467902,1726668640890,-231.36348862,0.00019157,2]
[338467904,1726668640899,-500.0,0.00019157,2]
[338467905,1726668640909,-500.0,0.00019157,2]
[338467906,1726668640918,-212.79839114,0.00019157,2]
[338467907,1726668640927,-187.96273708,0.00019157,2]
[338467908,1726668640936,-500.0,0.00019157,2]
[338467909,1726668640945,-500.0,0.00019157,2]
[338467910,1726668640955,-500.0,0.00019157,2]
[338467911,1726668640963,-500.0,0.00019157,2]
[338467912,1726668640975,-500.0,0.00019157,2]
[338467913,1726668640986,-500.0,0.00019157,2]
[338467914,1726668640998,-255782.91852,0.00019158,3]
[338467915,1726668641011,-49022.6830438,0.00019158,3]
[338467916,1726668641021,-22625.8537125,0.00019168,3]
[338467917,1726668641031,-500.0,0.00019173,2]
[338467918,1726668641043,-500.0,0.00019173,2]
[338467919,1726668641054,-500.0,0.00019173,2]
[338467920,1726668641064,-500.0,0.00019173,2]
[338467921,1726668641074,-500.0,0.00019173,2]
[338467922,1726668641094,-500.0,0.00019173,2]
[338467923,1726668641105,-500.0,0.00019173,2]
[338467924,1726668641115,-500.0,0.00019173,2]
[338467925,1726668641125,-500.0,0.00019173,2]
[338467926,1726668641137,-179.00602621,0.00019177,2]
[338467927,1726668641146,-1441.30764285,0.00019177,2]
[338467928,1726668641155,-2425.42,0.00019177,2]
[338467929,1726668641167,-13769.08978249,0.00019178,5]
[338467930,1726668641179,-5000.75489539,0.00019178,5]
[338467931,1726668641189,-151.0,0.00019178,2]
[338467932,1726668641201,-151.0,0.00019178,2]
[338467933,1726668641210,-151.0,0.00019178,2]
[338467934,1726668641220,-154.482858,0.00019178,2]
[338467935,1726668641230,-229.30462457,0.00019178,2]
[338467936,1726668641242,-151.953278,0.00019178,2]
[338467937,1726668641252,-154.795383,0.00019178,2]
[338467938,1726668641262,-500.0,0.00019178,2]
[338467939,1726668641272,-500.0,0.00019178,2]
[338467940,1726668641282,-151.0,0.00019178,2]
[338467941,1726668641293,-151.0,0.00019178,2]
[338467942,1726668641304,-165.687022,0.00019178,2]
[338467943,1726668641317,-500.0,0.00019178,2]
[338467944,1726668641329,-151.0,0.00019178,2]
[338467945,1726668641339,-151.0,0.00019178,2]
[338467946,1726668641349,-151.0,0.00019178,2]
[338467947,1726668641360,-151.0,0.00019178,2]
[338467948,1726668641370,-299.922293,0.00019178,2]
[338467949,1726668641380,-500.0,0.00019178,2]
[338467950,1726668641392,-650.14,0.00019178,2]
[338467951,1726668641402,-500.0,0.00019178,2]
[338467952,1726668641412,-500.0,0.00019178,2]
[338467953,1726668641422,-250.0,0.00019178,2]
[338467954,1726668641434,-500.0,0.00019178,2]
[338467955,1726668641444,-151.0,0.00019178,2]